Cogmind - Beta 10.2 @@@ ROGUE MODE // 2020.11.03 @ 03:10:22 Player: Whismirk Result: Destroyed by D-53 Grenadier with Mini Grenade Launcher Performance ------------- Evolutions (0) 0 Regions Visited (4) 800 Robots Destroyed (14) 70 Value Destroyed (249) 249 Prototype IDs (23) 460 Alien Tech Used (0) 0 Bonus (349) 349 TOTAL SCORE: 1928 Bonus ------- Follower Combat Kills 49 Aligned with FarCom 300 Cogmind --------- Core Integrity 0/250 Matter 245/300 Energy 307/310 System Corruption 0% Temperature Cool (115) Movement Core (350) Ox6 Location -9/Mines Parts ------- > --- POWER (1) -------- Fission Core > --- PROPULSION (2) --- (None) > --- UTILITY (2) ------ Signal Interpreter > --- WEAPON (2) ------- Bore Cannon > --- INVENTORY (4) ---- Improved Heat Sink Small Storage Unit Improved Targeting Computer Skeleton Box Peak State ------------ > --- POWER ------------ Fission Core > --- PROPULSION ------- Flexi-carbon Leg > --- UTILITY ---------- Signal Interpreter Hardened Light Armor Plating > --- WEAPON ----------- Bore Cannon > --- INVENTORY -------- Improved Heat Sink Small Storage Unit Improved Targeting Computer Skeleton Box [Rating: 19] Favorites ----------- Power Ion Engine Engine Ion Engine Power Core Light Nuclear Core Propulsion Aluminum Leg Leg Aluminum Leg Flight Unit Flight Unit Utility Small Storage Unit Storage Small Storage Unit Processor Signal Interpreter Protection Hardened Light Armor Plating Weapon Light Assault Rifle Energy Gun Particle Gun Ballistic Gun Light Assault Rifle Ballistic Cannon Bore Cannon Build | -11 -10 -10 -10 -9 ------- Run | Scr Mat Min Exi Min Slots Evolved . | . . . . . Power . | . . . . . Propulsion . | . . . . . Utility . | . . . . . Weapon . | . . . . . Parts Attached 31 | 5 3 14 4 5 Power 7 | 1 . 4 1 1 Engine 5 | 1 . 3 1 . Core 2 | . . 1 . 1 Reactor . | . . . . . Propulsion 8 | 1 2 4 . 1 Treads . | . . . . . Leg 7 | 1 2 3 . 1 Wheel . | . . . . . Hover . | . . . . . Flight 1 | . . 1 . . Utility 7 | 1 . 2 3 1 Device . | . . . . . Storage 5 | 1 . 1 3 . Processor 1 | . . 1 . . Hackware . | . . . . . Protection 1 | . . . . 1 Artifact . | . . . . . Weapon 9 | 2 1 4 . 2 Energy Gun 5 | 1 1 2 . 1 Energy Cannon . | . . . . . Ballistic Gun 3 | 1 . 2 . . Ballistic Cannon 1 | . . . . 1 Launcher . | . . . . . Special Weapon . | . . . . . Impact Weapon . | . . . . . Slashing Weapon . | . . . . . Piercing Weapon . | . . . . . Special Melee Weapon . | . . . . . Unidentified Prototypes . | . . . . . Parts Lost 11 | . . 4 . 7 Power 1 | . . 1 . . Propulsion 5 | . . 2 . 3 Utility 1 | . . . . 1 Weapon 4 | . . 1 . 3 Highest Loss Streak 7 | . . 2 . 7 Average Slot Usage (%) 94 | . 85 89 100 75 Engine 13 | . 14 12 14 12 Leg 26 | . 28 25 28 17 Storage 13 | . 14 13 14 4 Processor 11 | . . 9 14 14 Energy Gun 12 | . 14 10 14 7 Ballistic Gun 14 | . 14 16 14 4 Naked Turns . | . . . . . Heaviest Build 24 | 11 12 13 17 24 Greatest Support 20 | 10 20 20 20 20 Greatest Overweight (x) 3 | 1 . 2 . 3 Average Overweight (x) . | . . . . . Largest Inventory Capacity 8 | 6 6 6 8 6 Average Capacity 6 | 5 6 5 6 4 Most Carried 6 | 3 3 5 6 5 Average Carried 3 | . 1 2 4 4 Final Capacity 6 | 6 6 6 6 4 Final Carried 4 | 1 3 3 4 4 Class Distribution -------------------- 76% | Scavenger-Mutant 23% | Mutant Dominant Class ---------------- Mutant | -10/Materials Scavenger-Mutant | -10/Mines Scavenger-Mutant | -10/Exiles Mutant | -9/Mines Resources | -11 -10 -10 -10 -9 ----------- Run | Scr Mat Min Exi Min Matter Collected 641 | 250 166 179 . 46 Remotely . | . . . . . Salvage Created 378 | . 224 133 . 21 Parts 25 | . 12 13 . . Haulers Intercepted . | . . . . . Recyclers Shooed . | . . . . . Parts Field Recycled . | . . . . . Retrieved Matter . | . . . . . Parts Self-Destructed . | . . . . . Prevented . | . . . . . Kills | -11 -10 -10 -10 -9 ------- Run | Scr Mat Min Exi Min Combat Hostiles Destroyed 13 | . 4 7 . 2 Guns 11 | . 3 7 . 1 Cannons 1 | . . . . 1 AOE 1 | . 1 . . . Classes Destroyed 4 | . 2 1 . 1 Recycler 1 | . 1 . . . Swarmer 6 | . . 6 . . Grunt 5 | . 4 1 . . Assembled 2 | . . . . 2 Best Kill Streak 4 | . 4 3 . 1 Combat Bots Only 4 | . 4 3 . 1 Max Kills in Single Turn 1 | . 1 1 . 1 Gunslinging . | . . . . . Exploded 1 | . 1 . . . Melee . | . . . . . Uniques/NPCs Destroyed . | . . . . . Combat | -11 -10 -10 -10 -9 -------- Run | Scr Mat Min Exi Min Damage Taken 1472 | . 150 603 . 719 Core 254 | . 14 172 . 68 Absorbed by Shields . | . . . . . Core Remaining (%) 100 | 100 . . . . Volleys Fired 44 | . 12 25 . 7 Largest 2 | . 2 2 . 2 Hottest 85 | . 85 85 . 85 Shots Fired 76 | . 24 44 . 8 Gun 71 | . 24 44 . 3 Cannon 5 | . . . . 5 Launcher . | . . . . . Special . | . . . . . Kinetic 46 | . 12 28 . 6 Thermal 18 | . 1 16 . 1 Explosive . | . . . . . Electromagnetic 12 | . 11 . . 1 Robot Hit Streak 5 | . 2 5 . 2 Robot Miss Streak 5 | . 2 5 . 2 Penetration Max . | . . . . . Secondary Targets 2 | . . 2 . . Max Gunslinging Chain 1 | . . 1 . . Shots Hit Robots 35 | . 12 19 . 4 Core Hits 23 | . 9 11 . 3 Critical Hits 1 | . . . . 1 Critical Kills 1 | . . . . 1 Critical Parts Destroyed . | . . . . . Melee Attacks . | . . . . . Impact . | . . . . . Slashing . | . . . . . Piercing . | . . . . . Sneak Attacks . | . . . . . Combat Hostiles . | . . . . . Follow-up Attacks . | . . . . . Damage Inflicted 653 | . 260 290 . 103 Guns 506 | . 190 290 . 26 Cannons 77 | . . . . 77 Explosions 70 | . 70 . . . Melee . | . . . . . Ramming . | . . . . . Kinetic 278 | . 89 112 . 77 Thermal 281 | . 88 178 . 15 Explosive . | . . . . . Electromagnetic 94 | . 83 . . 11 Impact . | . . . . . Slashing . | . . . . . Piercing . | . . . . . Highest Corruption . | . . . . . Average Corruption . | . . . . . Corruption Purged . | . . . . . Overload Shots . | . . . . . Overflow Damage 8 | . 8 . . . Projectiles . | . . . . . Explosions 8 | . 8 . . . Melee . | . . . . . Knockbacks 1 | . . . . 1 Impact . | . . . . . Kinetic 1 | . . . . 1 Secondary . | . . . . . Self-Inflicted Damage . | . . . . . Shots . | . . . . . Rammed . | . . . . . Targets Rammed . | . . . . . Kicked . | . . . . . Crushed . | . . . . . Highest Temperature 216 | . 72 216 . 145 Average Temperature 64 | . 32 81 . 64 Received Heat Transfer 343 | . 84 138 . 121 Siege Activations . | . . . . . Robots Corrupted . | . . . . . Combat Hostiles . | . . . . . Parts Fried . | . . . . . Impact Corruptions . | . . . . . Robots Melted . | . . . . . Combat Hostiles . | . . . . . Parts Melted . | . . . . . Heat Transferred 581 | . 137 407 . 37 Parts Sabotaged . | . . . . . Parts Stolen . | . . . . . Parts Stripped . | . . . . . Power Chain Reactions 1 | . 1 . . . Missiles Intercepted . | . . . . . Alert | -11 -10 -10 -10 -9 ------- Run | Scr Mat Min Exi Min Peak Influence 237 | . 112 237 . 5 Initial 43 | . . 43 . . Average 81 | . 66 103 . . Maximum Alert Level 1 | . . 1 . . Low Security (%) 91 | 100 100 86 . 100 Level 1 8 | . . 13 . . Level 2 . | . . . . . Level 3 . | . . . . . Level 4 . | . . . . . Level 5 . | . . . . . High Security . | . . . . . Max Security . | . . . . . Squads Dispatched . | . . . . . Investigation . | . . . . . Extermination . | . . . . . Reinforcement . | . . . . . Assault . | . . . . . Garrison . | . . . . . Intercept . | . . . . . Construction Impeded . | . . . . . Haulers Reinforced . | . . . . . Stealth | -11 -10 -10 -10 -9 --------- Run | Scr Mat Min Exi Min Distress Signals . | . . . . . Communications Jammed . | . . . . . Distress Signals . | . . . . . Times Spotted 29 | . 6 13 . 10 Peak Tracking Total 6 | . 2 5 . 6 Tactical Retreats 3 | . . 3 . . Traps | -11 -10 -10 -10 -9 ------- Run | Scr Mat Min Exi Min Traps Triggered . | . . . . . Indirectly . | . . . . . Trap Hack Attempts . | . . . . . Triggered . | . . . . . Disarmed . | . . . . . Reprogrammed . | . . . . . Reused . | . . . . . Traps Extracted . | . . . . . Installed . | . . . . . Triggered . | . . . . . Machines | -11 -10 -10 -10 -9 ---------- Run | Scr Mat Min Exi Min Machines Disabled . | . . . . . Max in Single Turn . | . . . . . Machines Sabotaged . | . . . . . Garrisons Compromised . | . . . . . Overloaded Fab Kills . | . . . . . Fab Network Shutdowns . | . . . . . Hacking | -11 -10 -10 -10 -9 --------- Run | Scr Mat Min Exi Min Machines Accessed 6 | . 1 . 5 . Terminals 1 | . 1 . . . Fabricators . | . . . . . Repair Stations . | . . . . . Recycling Units . | . . . . . Scanalyzers . | . . . . . Garrison Access . | . . . . . Total Hacks 54 | . 4 . 50 . Successful 53 | . 3 . 50 . Failed 1 | . 1 . . . Catastrophic . | . . . . . Database Lockouts . | . . . . . Manual 2 | . . . 2 . Terminals 4 | . 4 . . . Fabricators . | . . . . . Repair Stations . | . . . . . Recycling Units . | . . . . . Scanalyzers . | . . . . . Garrison Access . | . . . . . Terminal Hacks 53 | . 3 . 50 . Record 52 | . 3 . 49 . EX-Prototype ID Bank 1 | . . . 1 . Fabricator Hacks . | . . . . . Repair Station Hacks . | . . . . . Recycling Unit Hacks . | . . . . . Scanalyzer . | . . . . . Garrison Access Hacks . | . . . . . Unauthorized Hacks . | . . . . . Terminals . | . . . . . Fabricators . | . . . . . Repair Stations . | . . . . . Recycling Units . | . . . . . Scanalyzers . | . . . . . Garrison Access . | . . . . . Data Cores Recovered . | . . . . . Used . | . . . . . Hacking Detections 1 | . 1 . . . Full Trace Events 1 | . 1 . . . Feedback Events . | . . . . . Feedback Blocked . | . . . . . Robot Schematics Acquired . | . . . . . Robots Built . | . . . . . Matter . | . . . . . Time . | . . . . . Total Robot Build Rating . | . . . . . Part Schematics Acquired . | . . . . . Parts Built . | . . . . . Matter . | . . . . . Time . | . . . . . Total Part Build Rating . | . . . . . Parts Repaired . | . . . . . Time . | . . . . . Parts Recycled . | . . . . . Recycled Matter . | . . . . . Retrieved Matter . | . . . . . Retrieved Components . | . . . . . Parts Scanalyzed . | . . . . . Part Schematics Acquired . | . . . . . Parts Damaged . | . . . . . Bothacking | -11 -10 -10 -10 -9 ------------ Run | Scr Mat Min Exi Min Used RIF Installer . | . . . . . Robots Hacked . | . . . . . Non-combat . | . . . . . Combat . | . . . . . Robot Hacks Applied . | . . . . . Relay Couplers Released . | . . . . . Robots Rewired . | . . . . . Allies Hacked . | . . . . . Hacks Repelled . | . . . . . Allies | -11 -10 -10 -10 -9 -------- Run | Scr Mat Min Exi Min Total Allies 3 | . . 3 . . Largest Group 3 | . . 3 1 . Highest-Rated Group 73 | . . 73 31 . Highest-Rated Ally 31 | . . 31 31 . Total Orders . | . . . . . Ally Attacks 9 | . . 9 . . Total Damage 105 | . . 105 . . Kills 3 | . . 3 . . Allies Corrupted . | . . . . . Allies Melted . | . . . . . Intel | -11 -10 -10 -10 -9 ------- Run | Scr Mat Min Exi Min Robot Analysis Total . | . . . . . Derelict Logs Recovered 1 | . . 1 . . Drone Launches . | . . . . . Drone Recoveries . | . . . . . Exploration | -11 -10 -10 -10 -9 ------------- Run | Scr Mat Min Exi Min Turns Passed 2297 | 64 229 747 1163 94 Spaces Moved 1710 | 39 127 537 959 48 Core 30 | 4 . 21 . 5 Treads . | . . . . . Legs 1677 | 35 127 513 959 43 Wheels . | . . . . . Hover . | . . . . . Flight 3 | . . 3 . . Fastest Speed 50 | 50 120 100 120 120 Average Speed 121 | 138 120 120 120 134 Slowest Speed 200 | 150 120 150 120 200 Overloaded Moves . | . . . . . Propulsion Burnouts . | . . . . . Robots Hopped . | . . . . . Cave-ins Triggered . | . . . . . Exploration Rate (%) 41 | 4 27 83 83 12 Regions Visited 4 Branch Regions 3 Pre-discovered Areas 1 | . . . 1 . Known Exits Taken 2 | . . 1 1 . Unknown Exits Taken 2 | 1 1 . . . Scrap Searched 2 | . . 2 . . Spaces Dug . | . . . . . Terrain Destroyed 10 | . 6 . . 4 Melee . | . . . . . Projectile 4 | . . . . 4 AOE 6 | . 6 . . . Terrain Rammed . | . . . . . Walls Destroyed . | . . . . . Machines Disabled . | . . . . . Actions | -11 -10 -10 -10 -9 --------- Run | Scr Mat Min Exi Min Total 1865 | 49 179 596 972 69 Wait 41 | . 33 4 . 4 Move 1706 | 38 126 536 958 48 Hop . | . . . . . Pick Up 25 | 6 4 8 5 2 Fast Attach 7 | . . 3 . 4 Attach 12 | 5 1 5 1 . Detach 3 | . . 2 1 . Swap 12 | . 2 6 3 1 Drop 15 | . 1 7 4 3 Fire 44 | . 12 25 . 7 Melee . | . . . . . Ram . | . . . . . Kick . | . . . . . Crush . | . . . . . Escape Stasis . | . . . . . Rewire . | . . . . . Trap . | . . . . . Miscellaneous . | . . . . . Route ------- -11/Scrapyard -10/Materials -10/Mines -10/Exiles -9/Mines History --------- Turn | Location | Event 9 | -11/Scrapyard | Discovered new exit (range 16) 65 | -11/Scrapyard | Entered Materials 236 | -10/Materials | Discovered new exit (range 7) 294 | -10/Materials | Entered Mines 310 | -10/Mines | Build established: Mutant 349 | -10/Mines | Learned Materials emergency access door positions 457 | -10/Mines | Core integrity fell below 50% 558 | -10/Mines | Received a Mining Laser from a helpful Derelict 802 | -10/Mines | Build established: Scavenger-Mutant 1035 | -10/Mines | Deemed a non-threat by the Exiles lab entrance 1036 | -10/Mines | Discovered new exit (range 5) 1040 | -10/Mines | Identified exit to Exiles 1041 | -10/Mines | Entered Exiles 1041 | -10/Exiles | Accompanied by 1 ally 1064 | -10/Exiles | Discovered new exit (range 15) 1071 | -10/Exiles | Led the pair of lost Derelicts to a safe place 1077 | -10/Exiles | Met 8R-AWN 1094 | -10/Exiles | Met EX-HEX 1141 | -10/Exiles | Met EX-DEC 1183 | -10/Exiles | Visited The Gauntlet 1372 | -10/Exiles | Learned location of Zion (-7) 1539 | -10/Exiles | Met EX-BIN 1562 | -10/Exiles | Aligned with FarCom system 1563 | -10/Exiles | Given EX-Vault access code 1911 | -10/Exiles | Opened EX-Vault 1922 | -10/Exiles | Found Skeleton Box 1951 | -10/Exiles | Warned to stay clear of 0b10 Research branches 2203 | -10/Exiles | Identified exit to Mines 2204 | -10/Exiles | Left Exiles lab with Skeleton Box 2204 | -10/Exiles | Entered Mines 2205 | -9/Mines | Assembled infested the area 2210 | -9/Mines | Assisted by a Guerilla fighting off Assembled 2266 | -9/Mines | Core integrity fell below 20% 2298 | -9/Mines | Destroyed by D-53 Grenadier with Mini Grenade Launcher Last Messages --------------- 02248_ as-23864 destroyed. 02252_ Acquired 10 matter. 02262_ EM Pulse Gun destroyed. 02265_ Aluminum Leg destroyed. 02268_ as-88329 sneak attacks. 02276_ Acquired Flexi-carbon Leg. 02279_ Acquired Bore Cannon. 02281_ Dropped Ion Engine. 02282_ Acquired Fission Core. 02285_ as-88329 suffers critical hit. 02285_ as-88329 destroyed. 02289_ HV Slug penetrates as-94692. 02289_ as-94692 knocked back. 02289_ HV Slug penetrates Wall. 02291_ HV Slug penetrates as-94692. 02294_ HV Slug penetrates Wall. 02294_ HV Slug penetrates Earth. 02295_ Hrd. Light Armor Plating destroyed. 02297_ The unstable cave ceiling collapses. 02298_ Flexi-carbon Leg destroyed. Map ----- +----------------------------------------------------+ | | | | | | | | | | | | | | | | | | | | | | | | | | | ????????????????????????????????????????? | | ????????????????????????????????????????? | | ?######################?????????????????? | | ##!!## #?????????????????? | | #" ! # #?????????????????? | | # % %+ #?????????????????? | | # %;% #?????????????????? | | #" !!#a #?????????????????? | | ##!!## #?????????????????? | | ?####### #?????????????????? | | ???????# #?????????????????? | | ???????# ## #??????????????? | | ???????# @ ; #??????????????? | | ???????# ###???????????????? | | ???????# #?????????????????? | | ???????#### dd ###?????????????????? | | ??????????# #???????????????????? | | ??????????# # #???????????????????? | | ??????????######## #???????????????????? | | ?????????????????? ??????????????????? | | ?????????????????? ?????????????????? | | ??????????????????? ????????????????? | | ??????????????????? ??????????????? | | ???????????????????# ?????????????? | | ???????????????????? ??????????????? | | ????????????????????# ???????????????? | | ????????????????????????????????????????? | | ????????????????????????????????????????? | | ????????????????????????????????????????? | | ????????????????????????????????????????? | | ????????????????????????????????????????? | | ????????????????????????????????????????? | | ????????????????????????????????????????? | | ????????????????????????????????????????? | | ????????????????????????????????????????? | | ????????????????????????????????????????? | | ????????????????????????????????????????? | +----------------------------------------------------+ Best States ------------- Heat Dissipation 25 Energy Generation 18 Energy Capacity 310 Matter Stores 300 Matter Capacity 300 Sight Range 16 Terrain Scan Density 10 Armor Coverage 150 Evasion (%) 40 Item Schematics ----------------- None Robot Schematics ------------------ None Fabricated ------------ Nothing Alien Tech Used ----------------- None Achievements -------------- Librarian Tourist Challenges ------------ None Game ------ Seed PowerNeutralizingActivator Manual? 0 Play Time 00:41:26 Cumulative 3.5 hours Start 2020.11.03 @ 02:16:36 End 2020.11.03 @ 03:10:22 Sessions 1 Manual Loads 0 Difficulty Rogue Special Mode None Game No. 4 Rogue 4 Adventurer 0 Explorer 0 Win Type - Total 0 Types 0/0/0/0/0/0/0/0/0 Lore% 11 Gallery% 8 Achievement% 5 Wizard Run 0 Options --------- ASCII 0 Keyboard 0 Movement Numpad Keybinds 0 Fullscreen 1 Font 18/SmallcapsGlow Map View 76x50 Tactical HUD 1 Map Filters NONE Filters NONE Steam 1 RUN: cb5a07b4-6c63-48c9-babc-4d7cb28e5ac1